Cogmind - Beta 11 @@@ ROGUE MODE // 2022.04.11 @ 17:21:45 Player: Rainynight Result: Destroyed by H-77 Assassin with Coil Gun Performance ------------- Evolutions (7) 3500 Regions Visited (14) 2800 Robots Destroyed (31) 155 Value Destroyed (1247) 1247 Prototype IDs (13) 260 Alien Tech Used (3) 600 Bonus (500) 500 TOTAL SCORE: 9062 Bonus ------- Pacifist 200 Met Zhirov 300 Cogmind --------- Core Integrity 0/1300 Matter 240/300 Energy 17/125 System Corruption 5% Temperature Cool (0) Movement Hovering (60) Location -3/Research Parts ------- > --- POWER (2) -------- Light Ion Engine > --- PROPULSION (7) --- Antigrav System Antigrav System > --- UTILITY (8) ------ 0b10 Decoder Chip [Scout] > --- WEAPON (4) ------- Compact Mass Driver > --- INVENTORY (5) ---- Makeshift Hacking Suite Peak State ------------ > --- POWER ------------ Fusion Reactor > --- PROPULSION ------- Cesium-ion Thruster Cesium-ion Thruster Cesium-ion Thruster Cesium-ion Thruster Cesium-ion Thruster Makeshift Flight Unit > --- UTILITY ---------- Improved Coolant Injector Improved Matter Compressor 0b10 Decoder Chip [Looter] 0b10 Decoder Chip [Scout] Advanced Reaction Control System Advanced System Shield > --- WEAPON ----------- Dispersion Rifle Heavy Hammer > --- INVENTORY -------- Cesium-ion Thruster Cesium-ion Thruster Heat Sink Makeshift Hacking Suite Transdimensional Reconstructor [Rating: 73] Favorites ----------- Power Micro Nuclear Core Engine Light Ion Engine Power Core Micro Nuclear Core Reactor Fusion Reactor Propulsion Cesium-ion Thruster Treads Heavy Treads Leg Improved Aluminum Leg Wheel Compact Wheel Hover Unit Antigrav System Flight Unit Cesium-ion Thruster Utility Large Storage Unit Device Cooling System Storage Large Storage Unit Processor 0b10 Decoder Chip [Scout] Hackware Advanced System Shield Protection Hardened Medium Armor Plating Weapon Improved Light Cannon Energy Gun Dispersion Rifle Ballistic Gun Assault Rifle Ballistic Cannon Improved Light Cannon Impact Weapon Heavy Hammer Build | -11 -10 -9 -8 -7 -6 -5 -5 -5 -5 -4 -4 -4 -4 -3 ------- Run | Scr Mat Mat Mat Fac Fac Fac Upp Upp Zhi Pro Fac Upp Upp Res Slots Evolved 14 | . . 2 2 2 2 2 . . . . 2 . . 2 Power 1 | . . . . . . . . . . . 1 . . . Propulsion 5 | . . . 1 . 1 2 . . . . . . . 1 Utility 6 | . . . 1 2 1 . . . . . 1 . . 1 Weapon 2 | . . 2 . . . . . . . . . . . . Parts Attached 72 | . 9 4 6 6 5 1 3 4 6 13 1 2 . 12 Power 7 | . . 1 1 . 1 . . . 1 1 . . . 2 Engine 2 | . . 1 . . . . . . . . . . . 1 Core 4 | . . . 1 . 1 . . . . 1 . . . 1 Reactor 1 | . . . . . . . . . 1 . . . . . Propulsion 30 | . 2 . 2 1 4 1 . . 2 10 1 1 . 6 Treads 2 | . . . . . . . . . . 2 . . . . Leg 7 | . 2 . 2 1 . . . . . . . 1 . 1 Wheel 2 | . . . . . . . . . . . 1 . . 1 Hover 4 | . . . . . . . . . . . . . . 4 Flight 15 | . . . . . 4 1 . . 2 8 . . . . Utility 24 | . 4 1 2 5 . . 3 3 3 1 . 1 . 1 Device 12 | . . 1 . 3 . . 2 2 1 1 . 1 . 1 Storage 4 | . 3 . . . . . . . 1 . . . . . Processor 4 | . 1 . . 1 . . 1 1 . . . . . . Hackware 1 | . . . . . . . . . 1 . . . . . Protection 3 | . . . 2 1 . . . . . . . . . . Artifact . | . . . . . . . . . . . . . . . Weapon 11 | . 3 2 1 . . . . 1 . 1 . . . 3 Energy Gun 2 | . . . . . . . . 1 . . . . . 1 Energy Cannon . | . . . . . . . . . . . . . . . Ballistic Gun 1 | . 1 . . . . . . . . . . . . . Ballistic Cannon 6 | . 2 2 1 . . . . . . . . . . 1 Launcher . | . . . . . . . . . . . . . . . Special Weapon . | . . . . . . . . . . . . . . . Impact Weapon 2 | . . . . . . . . . . 1 . . . 1 Slashing Weapon . | . . . . . . . . . . . . . . . Piercing Weapon . | . . . . . . . . . . . . . . . Special Melee Weapon . | . . . . . . . . . . . . . . . Unidentified Prototypes 6 | . . . . . . . . . 3 1 . . . 2 Corrupted Parts 6 | . . . . . . . . . 2 3 . . . 1 System Corruption 20 | . . . . . . . . . 8 10 . . . 2 Parts Lost 39 | . . . . 6 . . . 2 . 15 1 2 1 12 Power 3 | . . . . 1 . . . . . 1 . . . 1 Propulsion 20 | . . . . 1 . . . 1 . 9 1 1 1 6 Utility 10 | . . . . 1 . . . 1 . 4 . 1 . 3 Weapon 6 | . . . . 3 . . . . . 1 . . . 2 Highest Loss Streak 6 | . . . . 6 . . . 2 . 6 1 2 1 6 To Critical Strikes . | . . . . . . . . . . . . . . . Average Slot Usage (%) 75 | . 98 99 99 98 59 53 60 77 71 64 38 30 26 20 Engine 2 | . 14 11 . . . . . . . . . . . . Core 3 | . . . 8 6 5 5 5 5 3 . 5 1 . . Leg 13 | . 28 22 27 23 1 . . . . . . 1 5 2 Flight 7 | . . . . . 24 24 29 28 25 21 10 6 . . Device 8 | . . 4 9 17 13 11 12 18 14 6 . . . . Storage 6 | . 14 11 9 7 . . . . 1 5 5 5 5 3 Processor 6 | . 12 6 . 7 6 5 5 14 15 8 5 5 5 4 Hackware 1 | . . . . . . . . . 1 5 5 5 5 1 Protection 1 | . . . 9 4 . . . . . . . . . . Ballistic Cannon 17 | . 23 44 36 29 6 5 5 4 . . . . . 1 Naked Turns . | . . . . . . . . . . . . . . . Heaviest Build 54 | 11 31 41 53 54 16 16 24 24 26 29 9 9 4 13 Greatest Support 44 | 20 26 26 41 41 20 27 27 27 30 33 9 9 16 44 Greatest Overweight (x) 2 | . 1 1 1 1 . . . . . 2 . . . 2 Average Overweight (x) . | . . 1 . . . . . . . . . . . . Largest Inventory Capacity 20 | . 20 15 15 15 15 5 5 5 5 5 5 5 5 5 Average Capacity 9 | . 10 15 15 15 5 5 5 5 5 5 5 5 5 5 Most Carried 15 | . 10 15 15 15 14 5 4 5 5 5 5 5 5 5 Average Carried 8 | . 8 13 14 13 5 4 4 4 4 4 5 5 5 2 Final Capacity 15 | 8 15 15 15 15 5 5 5 5 5 5 5 5 5 5 Final Carried 15 | 6 10 15 15 15 5 4 4 5 5 5 5 5 5 1 Class Distribution -------------------- 32% | Mutant 19% | Skirmisher 13% | Sprinter 11% | Tank 11% | Gunner 5% | Derelict-Sprinter 5% | Derelict-Mutant Dominant Class ---------------- Mutant | -10/Materials Gunner | -9/Materials Tank | -8/Materials Skirmisher | -7/Factory Sprinter | -6/Factory Sprinter | -5/Factory Sprinter | -5/Upper Caves Sprinter | -5/Upper Caves Sprinter | -5/Zhirov Derelict-Mutant | -4/Proximity Caves Mutant | -4/Factory Mutant | -4/Upper Caves Mutant | -4/Upper Caves Mutant | -3/Research Resources | -11 -10 -9 -8 -7 -6 -5 -5 -5 -5 -4 -4 -4 -4 -3 ----------- Run | Scr Mat Mat Mat Fac Fac Fac Upp Upp Zhi Pro Fac Upp Upp Res Matter Collected 1595 | 200 98 201 208 49 . . 213 145 . 383 . 7 . 91 Remotely . | . . . . . . . . . . . . . . . Salvage Created 1040 | . . 230 214 29 . . . 20 . 199 . . . 348 Parts 47 | . . 19 15 2 . . . 2 . 5 . . . 4 Haulers Intercepted . | . . . . . . . . . . . . . . . Recyclers Shooed 4 | . . . 2 2 . . . . . . . . . . Parts Field Recycled . | . . . . . . . . . . . . . . . Retrieved Matter . | . . . . . . . . . . . . . . . Parts Self-Destructed 2 | . . . . . . . . 1 . 1 . . . . Prevented 4 | . . . . . . . . 1 . 3 . . . . Kills | -11 -10 -9 -8 -7 -6 -5 -5 -5 -5 -4 -4 -4 -4 -3 ------- Run | Scr Mat Mat Mat Fac Fac Fac Upp Upp Zhi Pro Fac Upp Upp Res Combat Hostiles Destroyed 28 | . . 9 4 3 . . . 1 . 6 . . . 5 Melee 6 | . . . . . . . . . . 5 . . . 1 Guns 2 | . . . . . . . . 1 . . . . . 1 Cannons 17 | . . 9 4 3 . . . . . . . . . 1 Classes Destroyed 8 | . . 3 2 2 . . . . . . . . . 1 Worker 1 | . . . . 1 . . . . . . . . . . Recycler 1 | . . . 1 . . . . . . . . . . . Operator 1 | . . . . . . . . . . . . . . 1 Swarmer 9 | . . 3 . . . . . 1 . 5 . . . . Grunt 12 | . . 5 1 2 . . . . . . . . . 4 Sentry 4 | . . 1 2 . . . . . . 1 . . . . Hunter 1 | . . . 1 . . . . . . . . . . . Programmer 2 | . . . . 1 . . . . . . . . . 1 Best Kill Streak 6 | . . 6 1 3 . . . 1 . 5 . . . 2 Combat Bots Only 6 | . . 6 1 2 . . . 1 . 5 . . . 2 Max Kills in Single Turn 2 | . . 2 1 1 . . . 1 . 1 . . . 1 Gunslinging . | . . . . . . . . . . . . . . . Exploded . | . . . . . . . . . . . . . . . Melee 1 | . . . . . . . . . . 1 . . . 1 Uniques/NPCs Destroyed . | . . . . . . . . . . . . . . . Combat | -11 -10 -9 -8 -7 -6 -5 -5 -5 -5 -4 -4 -4 -4 -3 -------- Run | Scr Mat Mat Mat Fac Fac Fac Upp Upp Zhi Pro Fac Upp Upp Res Damage Taken 5885 | . . 227 121 955 48 20 61 75 . 1602 114 303 242 2117 Core 2365 | . . 21 . 118 23 20 . . . 541 23 220 118 1281 Absorbed by Shields 16 | . . . . . . . . 16 . . . . . . Redirected to Shielding 22 | . . . 22 . . . . . . . . . . . Core Remaining (%) 85 | 100 100 94 100 83 97 . . . . 43 . . 68 . Volleys Fired 57 | . 1 11 12 12 . . . 5 . . . . . 16 Largest 4 | . 2 4 4 4 . . . 1 . . . . . 1 Hottest 161 | . 78 156 156 161 . . . 88 . . . . . 94 Shots Fired 164 | . 2 44 48 48 . . . 5 . . . . . 17 Gun 21 | . . . . . . . . 5 . . . . . 16 Cannon 143 | . 2 44 48 48 . . . . . . . . . 1 Launcher . | . . . . . . . . . . . . . . . Special . | . . . . . . . . . . . . . . . Kinetic 143 | . 2 44 48 48 . . . . . . . . . 1 Thermal 21 | . . . . . . . . 5 . . . . . 16 Explosive . | . . . . . . . . . . . . . . . Electromagnetic . | . . . . . . . . . . . . . . . Robot Hit Streak 9 | . 2 3 6 9 . . . 1 . . . . . 7 Robot Miss Streak 4 | . . 4 3 3 . . . 3 . . . . . 1 Penetration Max . | . . . . . . . . . . . . . . . Secondary Targets . | . . . . . . . . . . . . . . . Shots Hit Robots 115 | . 2 14 23 29 . . . 1 . 12 . . . 34 Core Hits 36 | . . 11 8 7 . . . 1 . 1 . . . 8 Critical Kills . | . . . . . . . . . . . . . . . Critical Parts Destroyed 6 | . . . . . . . . . . 2 . . . 4 Critical Strikes 8 | . . 1 . . . . . . . 2 . . . 5 Blast 2 | . . 1 . . . . . . . . . . . 1 Smash 6 | . . . . . . . . . . 2 . . . 4 Melee Attacks 46 | . . . . . . . . . . 24 . . . 22 Impact 46 | . . . . . . . . . . 24 . . . 22 Slashing . | . . . . . . . . . . . . . . . Piercing . | . . . . . . . . . . . . . . . Sneak Attacks 1 | . . . . . . . . . . . . . . 1 Combat Hostiles . | . . . . . . . . . . . . . . . Follow-up Attacks . | . . . . . . . . . . . . . . . Damage Inflicted 3186 | . 41 401 237 682 . . . 27 . 437 . . . 1361 Guns 457 | . . . . . . . . 27 . . . . . 430 Cannons 1425 | . 41 401 232 654 . . . . . . . . . 97 Explosions . | . . . . . . . . . . . . . . . Melee 1269 | . . . . . . . . . . 437 . . . 832 Ramming 35 | . . . 5 28 . . . . . . . . . 2 Kinetic 1425 | . 41 401 232 654 . . . . . . . . . 97 Thermal 457 | . . . . . . . . 27 . . . . . 430 Explosive . | . . . . . . . . . . . . . . . Electromagnetic . | . . . . . . . . . . . . . . . Impact 1269 | . . . . . . . . . . 437 . . . 832 Slashing . | . . . . . . . . . . . . . . . Piercing . | . . . . . . . . . . . . . . . Highest Corruption 25 | . . 3 . 5 . . . . 8 25 . . . 5 Average Corruption 8 | . . 2 . 2 . . . . 7 17 . . . 2 Corruption Purged . | . . . . . . . . . . . . . . . Corruption Blocked . | . . . . . . . . . . . . . . . Effects 35 | . . . . 8 . . . . . 23 . . . 4 Message Errors 7 | . . . . 1 . . . . . 6 . . . . Matter Fused 9 | . . . . 3 . . . . . 4 . . . 2 Heat Flow Errors 5 | . . . . 2 . . . . . 3 . . . . Energy Discharges 2 | . . . . . . . . . . 2 . . . . Parts Rejected 1 | . . . . . . . . . . 1 . . . . Data Loss (minor) 3 | . . . . . . . . . . 3 . . . . Misfires 2 | . . . . 1 . . . . . . . . . 1 Alerts 2 | . . . . . . . . . . 1 . . . 1 Misdirections 3 | . . . . . . . . . . 3 . . . . Weapon Failures 1 | . . . . 1 . . . . . . . . . . Overload Shots . | . . . . . . . . . . . . . . . Overflow Damage 514 | . . 4 . 5 . . . . . 183 . . . 322 Projectiles 9 | . . 4 . 5 . . . . . . . . . . Explosions . | . . . . . . . . . . . . . . . Melee 505 | . . . . . . . . . . 183 . . . 322 Knockbacks 27 | . 2 4 3 10 . . . . . . . . . 8 Impact 5 | . . . . . . . . . . . . . . 5 Kinetic 18 | . 2 4 3 9 . . . . . . . . . . Secondary 4 | . . . . 1 . . . . . . . . . 3 Self-Inflicted Damage 1 | . . . . . . . . . . . . . . 1 Shots . | . . . . . . . . . . . . . . . Rammed 1 | . . . . . . . . . . . . . . 1 Targets Rammed 9 | . . . 3 5 . . . . . . . . . 1 Kicked 8 | . . . 3 5 . . . . . . . . . . Crushed . | . . . . . . . . . . . . . . . Highest Temperature 484 | . 18 484 36 171 . . . 185 . 164 . . . 18 Average Temperature 88 | . 12 173 15 31 . . . 107 . 62 . . . 11 Received Heat Transfer 773 | . . 84 18 144 . . . 6 . 151 18 45 57 250 Effects 1 | . . 1 . . . . . . . . . . . . Shutdowns 1 | . . 1 . . . . . . . . . . . . Siege Activations . | . . . . . . . . . . . . . . . Robots Corrupted . | . . . . . . . . . . . . . . . Combat Hostiles . | . . . . . . . . . . . . . . . Parts Fried 3 | . . . . . . . . 1 . 1 . . . 1 Impact Corruptions 18 | . . . . . . . . . . 7 . . . 11 Robots Melted . | . . . . . . . . . . . . . . . Combat Hostiles . | . . . . . . . . . . . . . . . Parts Melted . | . . . . . . . . . . . . . . . Heat Transferred 592 | . . . . . . . . 37 . . . . . 555 Parts Sabotaged . | . . . . . . . . . . . . . . . Parts Stolen . | . . . . . . . . . . . . . . . Parts Stripped . | . . . . . . . . . . . . . . . Power Chain Reactions . | . . . . . . . . . . . . . . . Missiles Intercepted . | . . . . . . . . . . . . . . . Alert | -11 -10 -9 -8 -7 -6 -5 -5 -5 -5 -4 -4 -4 -4 -3 ------- Run | Scr Mat Mat Mat Fac Fac Fac Upp Upp Zhi Pro Fac Upp Upp Res Peak Influence 326 | . 45 297 268 151 54 86 . . . . 326 . . 270 Initial 296 | . . 18 125 121 14 25 . . . . 296 . . 155 Average 125 | . 19 155 190 80 18 37 . . . . 303 . . 211 Maximum Alert Level 1 | . . 1 1 . . . . . . . 1 . . 1 Low Security (%) 72 | . 100 43 62 100 100 100 . . . . . . . 39 Level 1 27 | . . 56 37 . . . . . . . 100 . . 60 Level 2 . | . . . . . . . . . . . . . . . Level 3 . | . . . . . . . . . . . . . . . Level 4 . | . . . . . . . . . . . . . . . Level 5 . | . . . . . . . . . . . . . . . High Security . | . . . . . . . . . . . . . . . Max Security . | . . . . . . . . . . . . . . . Squads Dispatched 12 | . 2 . . 3 1 . . . . 1 . . . 5 Investigation 5 | . 1 . . 1 1 . . . . . . . . 2 Extermination 3 | . . . . 2 . . . . . . . . . 1 Reinforcement 3 | . 1 . . . . . . . . . . . . 2 Assault 1 | . . . . . . . . . . 1 . . . . Garrison . | . . . . . . . . . . . . . . . Intercept . | . . . . . . . . . . . . . . . Searches Triggered . | . . . . . . . . . . . . . . . Construction Impeded . | . . . . . . . . . . . . . . . Haulers Reinforced . | . . . . . . . . . . . . . . . Active Scanning Responses . | . . . . . . . . . . . . . . . Cargo Convoy Interrupts . | . . . . . . . . . . . . . . . Stealth | -11 -10 -9 -8 -7 -6 -5 -5 -5 -5 -4 -4 -4 -4 -3 --------- Run | Scr Mat Mat Mat Fac Fac Fac Upp Upp Zhi Pro Fac Upp Upp Res Distress Signals 5 | . . 1 2 . 1 . . . . . . . . 1 Communications Jammed . | . . . . . . . . . . . . . . . Distress Signals . | . . . . . . . . . . . . . . . Times Spotted 141 | . 3 10 7 11 4 2 19 9 . 40 3 8 4 21 Peak Tracking Total 14 | . 1 6 3 6 4 1 7 6 . 14 2 8 4 7 Tactical Retreats 27 | . . . . . . . 5 1 . 15 . 3 . 3 Traps | -11 -10 -9 -8 -7 -6 -5 -5 -5 -5 -4 -4 -4 -4 -3 ------- Run | Scr Mat Mat Mat Fac Fac Fac Upp Upp Zhi Pro Fac Upp Upp Res Traps Triggered 3 | . . 2 . . 1 . . . . . . . . . Indirectly . | . . . . . . . . . . . . . . . Trap Hack Attempts . | . . . . . . . . . . . . . . . Triggered . | . . . . . . . . . . . . . . . Disarmed . | . . . . . . . . . . . . . . . Reprogrammed . | . . . . . . . . . . . . . . . Reused . | . . . . . . . . . . . . . . . Traps Extracted . | . . . . . . . . . . . . . . . Installed . | . . . . . . . . . . . . . . . Triggered 2 | . . . . . . . 2 . . . . . . . Machines | -11 -10 -9 -8 -7 -6 -5 -5 -5 -5 -4 -4 -4 -4 -3 ---------- Run | Scr Mat Mat Mat Fac Fac Fac Upp Upp Zhi Pro Fac Upp Upp Res Machines Disabled 4 | . . 1 1 1 . . . . . 1 . . . . Max in Single Turn 1 | . . 1 1 1 . . . . . 1 . . . . Machines Sabotaged . | . . . . . . . . . . . . . . . Garrisons Compromised . | . . . . . . . . . . . . . . . Overloaded Fab Kills . | . . . . . . . . . . . . . . . Hacking | -11 -10 -9 -8 -7 -6 -5 -5 -5 -5 -4 -4 -4 -4 -3 --------- Run | Scr Mat Mat Mat Fac Fac Fac Upp Upp Zhi Pro Fac Upp Upp Res Machines Accessed 21 | . . . 1 1 2 2 . 1 9 1 1 . . 3 Terminals 7 | . . . 1 . 1 2 . . . . 1 . . 2 Fabricators . | . . . . . . . . . . . . . . . Repair Stations 2 | . . . . . 1 . . . . . . . . 1 Recycling Units 1 | . . . . 1 . . . . . . . . . . Scanalyzers . | . . . . . . . . . . . . . . . Garrison Access . | . . . . . . . . . . . . . . . Total Hacks 72 | . . . 2 2 4 3 . 1 48 1 3 . . 8 Successful 57 | . . . 2 . 2 2 . 1 48 1 . . . 1 Failed 15 | . . . . 2 2 1 . . . . 3 . . 7 Catastrophic 4 | . . . . . 1 . . . . . 2 . . 1 Database Lockouts . | . . . . . . . . . . . . . . . Manual 8 | . . . 1 . 2 2 . . . . 3 . . . Terminals 16 | . . . 2 . 2 3 . . . . 3 . . 6 Fabricators . | . . . . . . . . . . . . . . . Repair Stations 4 | . . . . . 2 . . . . . . . . 2 Recycling Units 2 | . . . . 2 . . . . . . . . . . Scanalyzers . | . . . . . . . . . . . . . . . Garrison Access . | . . . . . . . . . . . . . . . Terminal Hacks 55 | . . . 2 . 1 1 . 1 48 1 . . . 1 Record 38 | . . . . . . 1 . . 36 1 . . . . Part Schematic 4 | . . . . . . . . . 4 . . . . . Robot Analysis 4 | . . . . . . . . . 4 . . . . . Prototype ID Bank 4 | . . . . . . . . . 4 . . . . . Open Door 1 | . . . . . . . . 1 . . . . . . Open DSF 1 | . . . . . . . . . . . . . . 1 Unreport Threat 1 | . . . . . 1 . . . . . . . . . Locate Traps 1 | . . . 1 . . . . . . . . . . . Zone Layout 1 | . . . 1 . . . . . . . . . . . Fabricator Hacks . | . . . . . . . . . . . . . . . Repair Station Hacks 1 | . . . . . 1 . . . . . . . . . Scan Component 1 | . . . . . 1 . . . . . . . . . Recycling Unit Hacks . | . . . . . . . . . . . . . . . Scanalyzer . | . . . . . . . . . . . . . . . Garrison Access Hacks . | . . . . . . . . . . . . . . . Unauthorized Hacks 1 | . . . . . . 1 . . . . . . . . Terminals 1 | . . . . . . 1 . . . . . . . . Assimilate 1 | . . . . . . 1 . . . . . . . . Fabricators . | . . . . . . . . . . . . . . . Repair Stations . | . . . . . . . . . . . . . . . Recycling Units . | . . . . . . . . . . . . . . . Scanalyzers . | . . . . . . . . . . . . . . . Garrison Access . | . . . . . . . . . . . . . . . Data Cores Recovered . | . . . . . . . . . . . . . . . Used . | . . . . . . . . . . . . . . . Hacking Detections 8 | . . . 1 1 2 1 . . . . 1 . . 2 Full Trace Events 4 | . . . . 1 1 . . . . . . . . 2 Feedback Events 1 | . . . . 1 . . . . . . . . . . Corruption 1 | . . . . 1 . . . . . . . . . . Feedback Blocked . | . . . . . . . . . . . . . . . Robot Schematics Acquired . | . . . . . . . . . . . . . . . Robots Built . | . . . . . . . . . . . . . . . Authchips . | . . . . . . . . . . . . . . . Time . | . . . . . . . . . . . . . . . Total Robot Build Rating . | . . . . . . . . . . . . . . . Part Schematics Acquired 4 | . . . . . . . . . 4 . . . . . Parts Built . | . . . . . . . . . . . . . . . Authchips . | . . . . . . . . . . . . . . . Time . | . . . . . . . . . . . . . . . Total Part Build Rating . | . . . . . . . . . . . . . . . Parts Repaired . | . . . . . . . . . . . . . . . Time . | . . . . . . . . . . . . . . . Parts Recycled . | . . . . . . . . . . . . . . . Recycled Matter . | . . . . . . . . . . . . . . . Retrieved Matter . | . . . . . . . . . . . . . . . Retrieved Components . | . . . . . . . . . . . . . . . Parts Scanalyzed . | . . . . . . . . . . . . . . . Part Schematics Acquired . | . . . . . . . . . . . . . . . Parts Damaged . | . . . . . . . . . . . . . . . Bothacking | -11 -10 -9 -8 -7 -6 -5 -5 -5 -5 -4 -4 -4 -4 -3 ------------ Run | Scr Mat Mat Mat Fac Fac Fac Upp Upp Zhi Pro Fac Upp Upp Res Used RIF Installer . | . . . . . . . . . . . . . . . Robots Hacked . | . . . . . . . . . . . . . . . Non-combat . | . . . . . . . . . . . . . . . Combat . | . . . . . . . . . . . . . . . Robot Hacks Applied . | . . . . . . . . . . . . . . . Relay Couplers Released . | . . . . . . . . . . . . . . . Fabnet Peak Effective % . | . . . . . . . . . . . . . . . Robots Rewired . | . . . . . . . . . . . . . . . Allies Hacked . | . . . . . . . . . . . . . . . Hacks Repelled . | . . . . . . . . . . . . . . . Allies | -11 -10 -9 -8 -7 -6 -5 -5 -5 -5 -4 -4 -4 -4 -3 -------- Run | Scr Mat Mat Mat Fac Fac Fac Upp Upp Zhi Pro Fac Upp Upp Res Total Allies 1 | . . . . . . 1 . . . . . . . . Largest Group 1 | . . . . . . 1 . . . . . . . . Highest-Rated Group 26 | . . . . . . 26 . . . . . . . . Highest-Rated Ally 26 | . . . . . . 26 . . . . . . . . Total Orders . | . . . . . . . . . . . . . . . Ally Attacks . | . . . . . . . . . . . . . . . Total Damage . | . . . . . . . . . . . . . . . Kills . | . . . . . . . . . . . . . . . Allies Corrupted . | . . . . . . . . . . . . . . . Allies Melted . | . . . . . . . . . . . . . . . Intel | -11 -10 -9 -8 -7 -6 -5 -5 -5 -5 -4 -4 -4 -4 -3 ------- Run | Scr Mat Mat Mat Fac Fac Fac Upp Upp Zhi Pro Fac Upp Upp Res Robot Analysis Total 4 | . . . . . . . . . 4 . . . . . Derelict Logs Recovered 6 | . . . . . . . . 2 . 2 . 2 . . Drone Launches . | . . . . . . . . . . . . . . . Drone Recoveries . | . . . . . . . . . . . . . . . Decoded 0b10 Intel 11 | . . . . . . . . . . . 2 . . 9 Traps 5 | . . . . . . . . . . . . . . 5 Emergency Access 6 | . . . . . . . . . . . 2 . . 4 Exploration | -11 -10 -9 -8 -7 -6 -5 -5 -5 -5 -4 -4 -4 -4 -3 ------------- Run | Scr Mat Mat Mat Fac Fac Fac Upp Upp Zhi Pro Fac Upp Upp Res Turns Passed 3491 | . 349 377 378 704 95 81 180 102 62 524 89 142 16 392 Spaces Moved 4274 | 1 239 162 149 252 238 217 676 310 196 1166 122 285 18 243 Core 35 | . . . . . . . . . . 2 . . . 33 Treads . | . . . . . . . . . . . . . . . Legs 913 | 1 239 162 149 252 . . . . . . . . . 110 Wheels 92 | . . . . . . . . . . . . . 15 77 Hover 23 | . . . . . . . . . . . . . . 23 Flight 3211 | . . . . . 238 217 676 310 196 1164 122 285 3 . Fastest Speed 20 | 120 120 190 120 120 26 25 25 25 20 20 37 37 50 48 Average Speed 61 | 120 136 190 188 183 26 25 25 25 23 34 51 42 91 105 Slowest Speed 190 | 120 190 190 190 190 26 26 25 26 26 155 57 50 100 150 Overloaded Moves . | . . . . . . . . . . . . . . . Propulsion Burnouts . | . . . . . . . . . . . . . . . Robots Hopped 29 | . . . . . 7 4 1 1 4 5 1 4 2 . Cave-ins Triggered . | . . . . . . . . . . . . . . . Teleports 1 | . . . . . . . . . . . . . . 1 Exploration Rate (%) 31 | 2 49 18 16 7 6 6 79 58 62 93 4 53 5 9 Regions Visited 14 Branch Regions 6 Pre-discovered Areas 6 | . . . . . . . . 2 3 1 . . . . Known Exits Taken 7 | . . . . 1 1 1 1 1 . 1 . 1 . . Unknown Exits Taken 7 | 1 1 1 1 . . . . . 1 . 1 . 1 . Scrap Searched 8 | . . . . . . . 2 1 . 3 . 2 . . Spaces Dug . | . . . . . . . . . . . . . . . Terrain Destroyed 13 | . . 8 5 . . . . . . . . . . . Melee . | . . . . . . . . . . . . . . . Projectile 13 | . . 8 5 . . . . . . . . . . . AOE . | . . . . . . . . . . . . . . . Terrain Rammed . | . . . . . . . . . . . . . . . Walls Destroyed . | . . . . . . . . . . . . . . . Machines Disabled . | . . . . . . . . . . . . . . . Actions | -11 -10 -9 -8 -7 -6 -5 -5 -5 -5 -4 -4 -4 -4 -3 --------- Run | Scr Mat Mat Mat Fac Fac Fac Upp Upp Zhi Pro Fac Upp Upp Res Total 4892 | . 265 207 216 460 271 237 683 328 206 1239 145 301 15 319 Wait 377 | . . 14 37 183 10 23 6 6 . 32 24 18 . 24 Move 4204 | . 238 161 148 251 223 208 673 307 187 1155 119 277 14 243 Hop 27 | . . . . . 7 4 1 1 4 5 1 3 1 . Pick Up 41 | . 7 11 4 . 11 . . 1 3 4 . . . . Fast Attach 40 | . 3 1 1 1 . 1 3 4 5 9 1 2 . 9 Attach 19 | . . 2 2 3 3 . . . 2 3 . . . 4 Detach 8 | . 1 1 1 2 . . . 1 1 1 . . . . Swap 16 | . 6 1 3 2 2 . . . . 2 . . . . Drop 48 | . 9 5 5 1 15 1 . 3 4 4 . 1 . . Fire 57 | . 1 11 12 12 . . . 5 . . . . . 16 Melee 46 | . . . . . . . . . . 24 . . . 22 Ram 1 | . . . . . . . . . . . . . . 1 Kick 8 | . . . 3 5 . . . . . . . . . . Crush . | . . . . . . . . . . . . . . . Escape Stasis . | . . . . . . . . . . . . . . . Rewire . | . . . . . . . . . . . . . . . Trap . | . . . . . . . . . . . . . . . Miscellaneous . | . . . . . . . . . . . . . . . Route ------- -11/Scrapyard -10/Materials -9/Materials -8/Materials -7/Factory -6/Factory -5/Factory -5/Upper Caves -5/Upper Caves (discovered 2 exits: *Fac / *Zhi) -5/Zhirov -4/Proximity Caves -4/Factory -4/Upper Caves -4/Upper Caves -3/Research History --------- Turn | Location | Event 1 | -11/Scrapyard | Discovered new exit (range 0) 1 | -11/Scrapyard | Entered Materials 313 | -10/Materials | Build established: Mutant 335 | -10/Materials | Discovered new exit (range 9) 350 | -10/Materials | Entered another Materials area 350 | -9/Materials | Evolved 2 slots: Weapon x2 638 | -9/Materials | Build established: Gunner 712 | -9/Materials | Discovered new exit (range 9) 727 | -9/Materials | Entered another Materials area 727 | -8/Materials | Evolved 2 slots: Propulsion x1, Utility x1 1029 | -8/Materials | Build established: Tank 1086 | -8/Materials | Discovered new exit (range 11) 1105 | -8/Materials | Entered Factory 1105 | -7/Factory | Evolved 2 slots: Utility x2 1414 | -7/Factory | Build established: Skirmisher 1794 | -7/Factory | Discovered new exit (range 12) 1807 | -7/Factory | Identified exit to Factory 1809 | -7/Factory | Entered another Factory area 1809 | -6/Factory | Evolved 2 slots: Propulsion x1, Utility x1 1838 | -6/Factory | Lost 6 parts (1p1n1u3w) 1901 | -6/Factory | Discovered new exit (range 11) 1903 | -6/Factory | Identified exit to Factory 1904 | -6/Factory | Entered another Factory area 1904 | -5/Factory | Evolved 2 slots: Propulsion x2 1982 | -5/Factory | Discovered new exit (range 10) 1985 | -5/Factory | Identified exit to Upper Caves 1985 | -5/Factory | Entered Upper Caves 2022 | -5/Upper Caves | Spotted B-75 Beast 2075 | -5/Upper Caves | Attracted the attention of an 0b10 checkpoint 2120 | -5/Upper Caves | Build established: Sprinter 2128 | -5/Upper Caves | Discovered new exit (range 8) 2165 | -5/Upper Caves | Identified exit to Upper Caves 2165 | -5/Upper Caves | Entered another Upper Caves area 2171 | -5/Upper Caves | Discovered new exit (range 5) 2172 | -5/Upper Caves | Identified exit to Factory 2178 | -5/Upper Caves | Spotted B-75 Beast 2222 | -5/Upper Caves | Learned location of Armory (-4) 2227 | -5/Upper Caves | Encountered a Warlord checkpoint 2264 | -5/Upper Caves | Discovered new exit (range 11) 2266 | -5/Upper Caves | Identified exit to Zhirov 2267 | -5/Upper Caves | Entered Zhirov 2267 | -5/Zhirov | Discovered new exit (range 3) 2272 | -5/Zhirov | Met Zhirov 2278 | -5/Zhirov | Learned location of Quarantine (-3) 2278 | -5/Zhirov | Learned location of Testing (-2) 2278 | -5/Zhirov | Learned location of Command (-1) 2284 | -5/Zhirov | Zhirov requested help retrieving the SGEMP Prototype 2291 | -5/Zhirov | Found Alien Artifact 2291 | -5/Zhirov | Identified Integrated Dissipator 2291 | -5/Zhirov | Installed Integrated Dissipator, increased core heat dissipation (+20) 2299 | -5/Zhirov | Found Alien Artifact 2329 | -5/Zhirov | Entered Proximity Caves 2350 | -4/Proximity Caves | System corruption reached 10% 2357 | -4/Proximity Caves | Spotted B-86 Titan 2456 | -4/Proximity Caves | Learned location of 1 exit from Upper Caves 2460 | -4/Proximity Caves | Attracted the attention of an 0b10 checkpoint 2491 | -4/Proximity Caves | Attracted the attention of an 0b10 outpost 2530 | -4/Proximity Caves | Lost 6 parts (4n1u1w) 2686 | -4/Proximity Caves | Lost 3 parts (3u) 2723 | -4/Proximity Caves | Found Alien Artifact 2723 | -4/Proximity Caves | Identified Dimensional Node Initializer 2723 | -4/Proximity Caves | Initialized slip node 2752 | -4/Proximity Caves | Lost 6 parts (1p5n) 2765 | -4/Proximity Caves | Core integrity fell below 50% 2850 | -4/Proximity Caves | Discovered exit to Factory (range 7) 2853 | -4/Proximity Caves | Entered Factory 2853 | -4/Factory | Evolved 2 slots: Power x1, Utility x1 2906 | -4/Factory | Discovered new exit (range 15) 2942 | -4/Factory | Entered Upper Caves 2943 | -4/Upper Caves | Identified exit to Upper Caves 2965 | -4/Upper Caves | P-70 Sage assimilated allied R8-BBI(r) 2991 | -4/Upper Caves | Spotted B-86 Titan 2998 | -4/Upper Caves | Learned 8 Research zone layouts 3007 | -4/Upper Caves | Learned Research garrison access intel 3021 | -4/Upper Caves | Build established: Mutant 3026 | -4/Upper Caves | Attracted the attention of an 0b10 checkpoint 3084 | -4/Upper Caves | Entered another Upper Caves area 3094 | -4/Upper Caves | Discovered new exit (range 7) 3100 | -4/Upper Caves | Entered Research 3100 | -3/Research | Evolved 2 slots: Propulsion x1, Utility x1 3102 | -3/Research | Loaded intel: 4 garrison access locations 3285 | -3/Research | Lost 6 parts (1p2n2u1w) 3433 | -3/Research | Core integrity fell below 50% 3454 | -3/Research | Identified Transdimensional Reconstructor 3454 | -3/Research | Warped through subspace 3455 | -3/Research | Core integrity fell below 20% 3474 | -3/Research | Lost 4 parts (2n1u1w) 3492 | -3/Research | Destroyed by H-77 Assassin with Coil Gun Last Messages --------------- 03466_ Acquired Antigrav System. 03467_ Terminal disabled. 03468_ Acquired Antigrav System. 03469_ O-32 Director: "IFF HANDSHAKE FAILED. SECURING TERMINAL." 03470_ Acquired Antigrav System. 03477_ Slug penetrates Wall. 03478_ System corrupted: FCS attempts to trigger Com. Mass Driver. 03478_ System corrupted: Com. Mass Driver misfires. 03478_ Slug penetrates P-80 Master. 03478_ P-80 Master destroyed. 03478_ P-80 Master suffers critical hit (Blast). 03478_ Destroyed Sml. Battery. 03488_ Slug penetrates Prototyping Station. 03488_ K-01 Serf destroyed. 03488_ Penetrated by Slug. 03488_ Slug penetrates Terminal. 03488_ Penetrated by Slug. 03488_ Antigrav System destroyed. 03491_ Acquired Lgt. Ion Engine. 03491_ Slug penetrates Prototyping Station. Map ----- +----------------------------------------------------+ | ?????????????????????????????????????????????????? | | ?????????????????????????????????????????????????? | | ?????????????????????????????????????????????????? | | ?????????????????????????????????????????????????? | | ?????????????????????????????????????????????????? | | ?????????????????????????????????????????????????? | | ?????????????????????????????????????????????????? | | ?????????????????????????????????????????????????? | | ?????????????????????????????????????????????????? | | ?????????????????????????????????????????????????? | | ?????????????????????????????????????????????????? | | ?????????????????????????????????????????????????? | | ????????????????????????????? ?????????????????? | | ????????????????????????????? #???????????????? | | ??????????????????########### #???????????????? | | ????????????????### # #???????????????? | | ????????????????#" # #???????????????? | | ????????????????#"" """" # #???????????????? | | ????????????????#"" """" # #???????????????? | | ????????????????#"" o"""" # #???????????????? | | ????????????????#"" p """ # #???????????????? | | ????????????????#"T " "" # #???????????????? | | ????????????????#"" # #???????????????? | | ????????????????#"" # #???????????????? | | ????????????????#"" =|# ##########+#????? | | ????????????????#" @*%# ????? | | ????????????????# =%hh ???? | | ????????????????### !%=# ???? | | ??????????????????# # ???? | | ??????????????????# # ###+######??????? | | ??????????????????# # #???????????????? | | ??????????????????########### #???????????????? | | ???????????????????????????? #???????????????? | | ??????????????????????????? #???????????????? | | ?????????????????????????? #???????????????? | | ?????????????????????????? #???????????????? | | ????????????????????????? ########???????????????? | | ??????????+????????????? ???????????????????????? | | ??????????????????????? ????????????????????????? | | ??????????????????????? ????????????????????????? | | ######???????????????? ?????????????????????????? | | #??????????????? ??????????????????????????? | | ]] #???????????????????????????????????????????? | | ]! #???????????????????????????????????????????? | | #???????????????????????????????????????????? | | ! #??????????? ?????????????????????????????? | | #????????#? ????????????????????????????? | | #????????# ????????????????????????????? | | #### ########## ???????????????????????????? | | ???????????????????????????? | +----------------------------------------------------+ Best States ------------- Heat Dissipation 76 Coolant Potential 80 Energy Generation 23 Energy Capacity 295 Matter Stores 590 Matter Capacity 600 Sight Range 16 Robot Scan Range 15 Terrain Scan Range 18 Terrain Scan Density 10 ECM Strength 2 Armor Coverage 225 Weapon Shielding 33 Evasion (%) 78 Targeting Accuracy 5 Recoil Reduction 2 Defensive Hacking 14 Item Schematics ----------------- Assault Drone Bay | -5/Zhirov | Free Exp. Heat Sink | -5/Zhirov | Free Exp. Optical Array | -5/Zhirov | Free Imp. Arc Thrower | -5/Zhirov | Free Robot Schematics ------------------ None Fabricated ------------ Nothing Alien Tech Used ----------------- Integrated Dissipator Dimensional Node Initializer Transdimensional Reconstructor Achievements -------------- None Challenges ------------ None Game ------ Seed MobileUtilityMediator Manual? 0 Play Time 00:55:53 Cumulative 64.8 hours Start 2022.04.11 @ 16:24:58 End 2022.04.11 @ 17:21:45 Sessions 1 Manual Loads 0 Difficulty Rogue Special Mode None Game No. 71 Rogue 71 Adventurer 0 Explorer 0 Win Type - Total 0 Types 0/0/0/0/0/0/0/0/0 Lore% 45 Gallery% 48 Achievement% 36 Wizard Run 0 Options --------- ASCII 1 Keyboard 1 Movement Numpad Keybinds 0 Fullscreen 1 Font 18/X11 Map View 76x50 Tactical HUD 1 Map Filters NONE Filters NONE Steam 1 RUN: 059f65ea-99d8-42ad-b616-2be0411b8922